bitfinex/quotes_ETHUSD_20210401
["timestamp","ask_amount","ask_price","bid_price","bid_amount"]
[1617278361873,16.62,1919.7,1919.6,2.0]
[1617278363375,17.01,1919.7,1919.6,2.0]
[1617278363575,16.62,1919.7,1919.6,2.0]
[1617278364001,9.27,1919.7,1919.6,2.0]
[1617278364202,0.7982,1919.9,1919.6,2.4]
[1617278364506,0.13,1920.2,1919.8,0.4]
[1617278364702,0.13,1920.2,1919.8,0.68]
[1617278364902,0.13,1920.2,1919.8,0.4]
[1617278366103,7.81305,1920.0,1919.8,0.4]
[1617278366305,7.81305,1920.0,1919.6,2.0]
[1617278366524,7.81305,1920.0,1919.7,0.38]
[1617278367726,7.81305,1920.0,1919.9,0.4]
[1617278368026,7.81305,1920.0,1919.6,2.0]
[1617278368230,7.81305,1920.0,1919.7,0.38]
[1617278369547,7.81305,1920.0,1919.9,0.14909175]
[1617278370774,6.66,1919.9,1919.6,2.0]
[1617278371070,9.29768,1919.8,1919.6,3.03020925]
[1617278371269,11.06,1919.7,1919.6,2.0]
[1617278371470,2.96,1919.7,1919.6,2.0]
[1617278371670,3.90768,1919.8,1919.6,2.0]
[1617278372100,12.82535,1919.7,1919.6,2.0]
[1617278372499,16.73567184,1919.7,1919.6,2.0]
[1617278372907,12.82535,1919.7,1919.6,2.0]
[1617278373101,26.31567184,1919.7,1919.6,2.0]
[1617278373404,18.94487184,1919.7,1919.6,3.0452123]
[1617278373601,28.99487184,1919.7,1919.6,2.0]
[1617278373803,36.99487184,1919.7,1919.6,2.0]
[1617278374701,26.94487184,1919.7,1919.6,2.0]
[1617278375906,17.74487184,1919.7,1919.6,2.0]
[1617278376102,26.31567184,1919.7,1919.6,2.0]
[1617278376904,25.11567184,1919.7,1919.6,2.0]
[1617278377122,18.31567184,1919.7,1919.6,2.0]
[1617278377322,25.11567184,1919.7,1919.6,2.0]
[1617278378323,26.31567184,1919.7,1919.6,2.0]
[1617278378526,33.11567184,1919.7,1919.6,2.0]
[1617278379124,4.30858,1919.5,1919.1,2.0]
[1617278379327,13.22716,1919.5,1919.1,2.0]
[1617278379524,2.72,1919.4,1919.1,2.0]
[1617278381253,11.72792912,1919.3,1919.1,2.0]
[1617278381556,4.88,1919.2,1919.1,2.0]
[1617278382877,6.88,1919.2,1919.1,2.0]
[1617278383077,2.0,1919.2,1919.1,2.39]
[1617278383378,6.5137489,1919.7,1919.1,2.39]
[1617278383379,2.0,1919.7,1919.1,2.39]
[1617278383577,13.02838,1920.0,1919.1,2.39]
[1617278383578,1.664,1919.2,1919.1,2.39]
[1617278384279,1.664,1919.2,1919.1,10.20399]
[1617278384480,1.664,1919.2,1919.1,34.29399]
[1617278386000,1.664,1919.2,1919.1,19.07767763]
[1617278386495,1.664,1920.0,1919.1,19.07767763]
[1617278386700,0.322,1919.9,1919.6,0.41]
[1617278387000,1.664,1919.8,1919.6,0.41]
[1617278388746,1.664,1919.8,1919.7,8.24]
[1617278388953,1.664,1919.8,1919.7,17.107]
[1617278389448,1.794,1920.2,1919.7,19.787]
[1617278389648,1.794,1920.2,1919.9,0.39]
[1617278389948,1.664,1920.0,1919.7,0.5275]
[1617278390248,1.664,1920.0,1919.6,0.41]
[1617278390450,1.951,1920.0,1919.6,0.41]
[1617278391153,1.664,1919.7,1919.5,0.53]
[1617278391453,1.664,1919.7,1919.5,0.39]
[1617278391649,1.664,1919.7,1919.6,18.52207169]
[1617278391850,1.664,1919.7,1919.6,21.48207169]
[1617278392768,1.664,1919.7,1919.6,12.18207169]
[1617278392978,1.664,1919.7,1919.6,15.97698497]
[1617278393170,1.664,1919.7,1919.6,12.18207169]
[1617278394672,1.664,1919.7,1919.6,12.70287169]
[1617278395495,7.81301,1920.0,1919.6,12.70287169]
[1617278395695,1.664,1919.7,1919.6,12.70287169]
[1617278396897,1.664,1919.7,1919.6,20.51495169]
[1617278398420,1.664,1920.1,1919.6,20.51495169]
[1617278398720,1.664,1920.1,1919.8,0.41]
[1617278399323,1.664,1920.1,1919.9,0.5208]
[1617278401528,1.794,1920.2,1919.9,0.5208]
[1617278401734,1.794,1920.2,1920.1,0.13108499]
[1617278402332,39.20679,1920.2,1920.1,0.13108499]
[1617278402534,52.21679,1920.2,1919.9,0.5208]
[1617278402733,34.75861568,1920.0,1919.9,0.5208]
[1617278402936,32.36,1919.9,1919.4,0.02]
[1617278403133,5.9543862,1919.5,1919.4,0.02]
[1617278403342,7.81817,1919.3,1919.1,2.0]
[1617278403541,34.7443862,1919.2,1919.1,2.0]
[1617278403878,29.2,1919.1,1919.0,12.55253831]
[1617278404141,51.3687,1919.1,1919.0,12.55253831]
[1617278404342,17.54,1918.7,1918.4,2.051112]
[1617278404539,26.92457,1918.7,1918.5,0.01]
[1617278404737,43.79967,1918.7,1918.5,0.01]
[1617278404937,46.79967,1918.7,1918.5,0.01]
[1617278406048,47.99967,1918.7,1918.5,0.01]
[1617278406348,36.974,1918.6,1918.4,2.051112]
[1617278406551,38.5419105,1918.5,1918.4,2.051112]
[1617278406750,44.3059105,1918.5,1918.4,2.051112]
[1617278407052,52.3059105,1918.5,1918.4,2.051112]
[1617278408149,60.1280805,1918.5,1918.4,2.051112]
[1617278408452,30.9280805,1918.5,1918.4,2.051112]
[1617278409375,43.8280805,1918.5,1918.4,2.051112]
[1617278409766,30.9280805,1918.5,1918.4,2.051112]
[1617278410268,41.4280805,1918.5,1918.4,2.051112]
[1617278410670,41.4280805,1918.5,1918.4,1.1333798]
[1617278412100,41.4280805,1918.5,1918.4,9.8e-06]
[1617278412403,0.39,1918.2,1918.0,0.535]
[1617278412607,0.39,1918.2,1917.6,2.0]
[1617278412608,23.7,1918.1,1917.6,2.0]
[1617278412814,2.764,1918.0,1917.6,2.0]
[1617278413002,14.164,1917.7,1917.6,2.0]
[1617278413197,28.6034,1917.7,1917.6,2.0]
[1617278413397,33.6134,1917.7,1917.6,2.0]
[1617278413695,33.6134,1917.7,1917.6,1.85]
[1617278413696,42.98757,1917.7,1917.6,1.85]
[1617278414220,42.98757,1917.7,1917.1,2.0]
[1617278414221,5.01,1917.4,1917.1,2.0]
[1617278414527,37.9047,1917.2,1917.1,2.0]
[1617278414725,45.73131,1917.2,1917.1,2.0]
[1617278415020,46.93131,1917.2,1917.1,2.0]
[1617278415220,54.93131,1917.2,1917.1,2.0]
[1617278415426,3.91442,1917.0,1916.6,2.0]
[1617278415621,3.91442,1917.0,1916.2,9.86097916]
[1617278415622,23.7,1916.7,1916.2,9.86097916]
[1617278415827,22.33,1916.3,1916.2,9.86097916]
[1617278416021,31.9535,1916.3,1916.2,9.86097916]
[1617278416219,8.4235,1916.3,1916.2,9.86097916]
[1617278416866,8.4235,1916.3,1916.2,10.24097916]
[1617278417067,1.564,1916.4,1916.2,10.24097916]
[1617278417269,1.564,1916.3,1916.2,10.09097916]
[1617278418066,1.564,1916.3,1916.2,25.84097916]
[1617278418067,2.62145998,1916.3,1916.2,25.84097916]
[1617278418267,2.62145998,1916.3,1916.2,13.59097916]
[1617278418479,2.52145998,1916.3,1916.2,13.59097916]
[1617278418667,2.52145998,1916.3,1916.2,10.09097916]
[1617278419572,2.52145998,1916.3,1916.2,9.66097916]
[1617278420571,2.51145998,1916.3,1916.2,9.66097916]
[1617278420773,6.42799662,1916.3,1916.2,9.66097916]
[1617278420973,17.13379181,1916.3,1916.2,9.66097916]
[1617278421271,28.32799662,1916.3,1916.2,9.66097916]
[1617278421472,28.71799662,1916.3,1916.1,2.0]
[1617278421696,30.82,1916.2,1916.1,2.0]
[1617278421898,42.71498,1916.2,1916.1,2.0]
[1617278422098,43.52513163,1916.2,1916.1,2.0]
[1617278422401,38.28513163,1916.2,1916.1,1.95]
[1617278422599,37.0234915,1916.2,1915.6,2.39]
[1617278422899,0.4,1915.9,1915.6,2.0]
[1617278423099,5.37045416,1915.8,1915.6,2.0]
[1617278423297,5.75045416,1915.8,1915.6,1.95]
[1617278423499,1.834,1915.8,1915.6,1.95]
[1617278424100,9.66591,1915.8,1915.6,1.95]
[1617278424319,20.66,1915.7,1915.6,1.95]
[1617278424521,22.114,1915.7,1915.6,1.95]
[1617278424821,14.464,1915.7,1915.6,1.95]
[1617278425522,6.464,1915.7,1915.6,1.95]
[1617278425722,6.464,1915.7,1915.6,1.9]
[1617278426824,1.454,1916.0,1915.6,2.29]
[1617278427055,1.454,1915.7,1915.6,11.8052]
[1617278427657,1.38962891,1915.7,1915.6,19.4552]
[1617278428053,1.38962891,1915.7,1915.6,23.1752]
[1617278428453,1.38962891,1915.7,1915.6,15.5252]
[1617278428654,0.05867891,1915.7,1915.6,26.5752]
[1617278429154,0.05867891,1915.7,1915.6,15.5252]
[1617278429799,0.05867891,1915.7,1915.6,11.4152]
[1617278430000,9.16265304,1916.0,1915.6,1.9]
[1617278430001,8.11141,1915.8,1915.6,1.9]
[1617278430204,9.45867891,1915.7,1915.6,1.9]
[1617278430404,17.45867891,1915.7,1915.6,1.9]
[1617278431202,8.05867891,1915.7,1915.6,1.9]
[1617278431502,0.05867891,1915.7,1915.6,1.9]
[1617278431701,5.06867891,1915.7,1915.6,2.28]
[1617278431901,5.06867891,1915.7,1915.6,1.53]
[1617278432104,5.06867891,1915.7,1915.6,1.53803119]
[1617278432322,5.06867891,1915.7,1915.5,0.52666444]
[1617278432523,5.01,1915.6,1915.5,0.52666444]
[1617278432728,5.06867891,1915.6,1915.5,0.52666444]
[1617278432922,0.05867891,1915.6,1915.5,0.52666444]
[1617278433222,5.01,1915.8,1915.5,0.52666444]
[1617278433425,0.05867891,1915.6,1915.5,0.52666444]
[1617278433924,0.05867891,1915.6,1915.5,0.34636444]
[1617278433925,6.30867891,1915.6,1915.5,0.34636444]
[1617278434926,6.30867891,1915.6,1915.5,0.09636444]
[1617278435427,11.31867891,1915.6,1915.5,0.09636444]
[1617278435726,11.69867891,1915.6,1915.5,0.09636444]
[1617278435926,22.99867891,1915.6,1915.5,0.09636444]
[1617278436225,11.69867891,1915.6,1915.5,0.09636444]
[1617278436628,19.69867891,1915.6,1915.5,0.09636444]
[1617278438157,19.31867891,1915.6,1915.5,0.09636444]
[1617278439256,19.70867891,1915.6,1915.5,0.04636444]
[1617278440678,31.14977891,1915.6,1915.5,0.04636444]
[1617278440982,19.19406894,1915.5,1915.1,1.14747832]
[1617278441173,0.4,1915.3,1915.1,1.14747832]
[1617278441471,8.65867891,1915.2,1915.1,1.14747832]
[1617278441674,16.65867891,1915.2,1915.1,1.14747832]
[1617278441872,7.85722619,1915.2,1915.1,1.14747832]
[1617278442572,0.05867891,1915.2,1915.1,1.15465422]
[1617278443009,0.05867891,1915.2,1915.1,1.55465422]
[1617278443710,1.0410913,1915.5,1915.1,1.55465422]
[1617278443711,0.05867891,1915.4,1915.1,1.55465422]
[1617278444111,0.05867891,1915.4,1915.3,9.46]
[1617278445210,0.05867891,1915.4,1915.1,1.15465422]
[1617278445425,0.05867891,1915.4,1915.2,0.4]
[1617278446325,0.05867891,1915.4,1915.1,1.15465422]
[1617278447327,0.05867891,1915.4,1915.2,0.39]
[1617278447531,0.05867891,1915.4,1915.3,0.39]
[1617278447948,0.05867891,1915.4,1915.3,0.01]
[1617278448560,4.31439979,1915.4,1915.3,0.01]
[1617278448848,1.84838644,1915.4,1915.3,0.01]
[1617278449149,5.06867891,1915.4,1915.3,0.01]
[1617278449659,0.05867891,1915.4,1915.3,0.01]
[1617278450452,0.44867891,1915.4,1915.3,0.01]
[1617278450668,0.05867891,1915.4,1915.3,0.01]
[1617278451069,5.06867891,1915.4,1915.3,0.01]
[1617278451369,0.05867891,1915.4,1915.3,0.01]
[1617278452269,5.06867891,1915.4,1915.3,0.01]
[1617278452671,0.05867891,1915.2,1914.8,8.21152]
[1617278452870,0.05867891,1915.3,1915.0,0.4]
[1617278453071,0.33867891,1915.3,1915.0,0.4]
[1617278453305,0.33867891,1915.3,1914.7,15.0846]
[1617278453506,0.33867891,1915.3,1914.8,0.4]
[1617278453507,5.01,1915.2,1914.8,0.4]
[1617278453705,0.05867891,1915.1,1914.7,15.0846]
[1617278454310,3.36,1915.0,1914.7,15.0846]
[1617278454511,0.05867891,1914.9,1914.7,15.0846]
[1617278455107,0.05867891,1914.9,1914.7,22.91655]
[1617278455305,0.05867891,1914.9,1914.7,15.0746]
[1617278455504,0.05867891,1914.9,1914.7,19.2546]
[1617278455925,0.05867891,1915.1,1914.7,19.2546]
[1617278456129,0.33867891,1915.1,1914.7,19.6646]
[1617278456328,0.33867891,1915.1,1914.7,15.4846]
[1617278456825,0.57472658,1915.1,1914.7,15.4846]
[1617278457228,0.57472658,1915.1,1914.7,15.0746]
[1617278457727,12.50867891,1914.8,1914.7,15.0746]
[1617278457929,12.50867891,1914.8,1914.6,2.01]
[1617278458127,0.39,1914.7,1914.6,2.01]
[1617278458339,19.74867891,1914.7,1914.6,2.01]
[1617278459661,28.93298569,1914.7,1914.6,2.01]
[1617278460753,29.01729247,1914.7,1914.2,14.3967]
[1617278460956,22.01,1914.3,1914.2,14.3967]
[1617278461195,40.02337891,1914.3,1914.1,2.0]
[1617278461397,23.35867891,1914.2,1914.1,2.0]
[1617278461794,23.44298569,1914.2,1914.1,2.0]
[1617278463194,31.36493247,1914.2,1914.1,2.0]
[1617278464102,31.44923925,1914.2,1914.1,2.0]
[1617278464298,31.44923925,1914.2,1914.1,2.0067353]
[1617278464699,38.0500913,1913.9,1913.8,0.06603639]
[1617278464905,38.51877021,1913.9,1913.8,0.06603639]
[1617278465099,52.44797021,1913.9,1913.8,0.06603639]
[1617278465297,52.53227699,1913.9,1913.8,0.06603639]
[1617278465798,53.51154059,1913.9,1913.8,0.06603639]
[1617278466098,61.3354107,1913.9,1913.8,0.06603639]
[1617278466525,61.41971748,1913.9,1913.8,6.39e-06]
[1617278466937,29.2,1913.8,1913.1,2.0]
[1617278467129,17.0,1913.2,1913.1,2.0]
[1617278467328,24.90029891,1913.2,1913.1,2.0]
[1617278467527,32.98460569,1913.2,1913.1,2.0]
[1617278467927,32.58460569,1913.2,1913.1,2.0]
[1617278468235,15.98460569,1913.2,1913.1,2.0]
[1617278468428,0.14298569,1913.2,1913.1,2.0]
[1617278468638,0.22729247,1913.2,1913.1,12.8]
[1617278469056,0.22729247,1913.2,1913.1,12.01]
[1617278469260,0.22729247,1913.2,1913.1,2.0]
[1617278469458,0.22729247,1913.2,1913.1,15.76]
[1617278469861,0.31159925,1913.2,1913.1,2.41]
[1617278470158,0.31159925,1913.2,1913.1,3.2]
[1617278470657,0.31159925,1913.2,1913.1,3.58]
[1617278470957,0.39590603,1913.2,1913.1,2.0]
[1617278471577,0.39590603,1913.2,1913.1,9.55]
[1617278471881,0.48021281,1913.2,1913.1,9.55]
[1617278472386,0.71592521,1913.2,1913.1,9.55]
[1617278472589,0.48021521,1913.2,1913.1,19.5837]
[1617278472781,1.03875336,1913.6,1913.1,19.5837]
[1617278472984,2.0,1913.5,1913.2,0.15]
[1617278473184,0.16861356,1913.9,1913.2,0.15]
[1617278473185,2.0,1913.8,1913.4,1.2]
[1617278473581,2.0,1913.8,1913.6,1.2]
[1617278473782,2.0,1913.8,1913.7,29.96]
[1617278473980,2.0,1913.8,1913.7,29.37]
[1617278474201,2.0,1913.8,1913.7,4.82]
[1617278474409,2.0,1913.8,1913.7,11.25]
[1617278474831,2.08430678,1913.8,1913.7,11.25]
[1617278475030,2.08430678,1913.8,1913.7,11.25600708]
[1617278475535,2.08430678,1913.8,1913.7,0.00600708]
[1617278475930,2.16861356,1913.8,1913.7,0.00600708]
[1617278476130,2.11861356,1913.8,1913.7,0.00600708]
[1617278476729,2.11861356,1913.8,1913.7,0.41600708]
[1617278478352,2.20292034,1913.8,1913.7,10.16600708]
[1617278478551,2.39159848,1913.8,1913.7,10.16600708]
[1617278478753,2.20292848,1913.8,1913.7,11.4790082]
[1617278478956,2.848e-05,1913.8,1913.7,11.4790082]
[1617278479155,2.848e-05,1913.8,1913.7,19.8690082]
[1617278479355,0.08433526,1913.8,1913.7,38.3190082]
[1617278479558,6.78e-06,1913.9,1913.7,68.3190082]
[1617278479760,6.78e-06,1913.9,1913.8,15.01]
[1617278479955,6.78e-06,1913.9,1913.8,40.7779897]
[1617278480156,6.78e-06,1913.9,1913.8,51.2220197]
[1617278480455,0.08431356,1913.9,1913.8,51.6020197]
[1617278480656,0.08431356,1913.9,1913.8,52.63566461]
[1617278481255,1.356e-05,1913.9,1913.8,82.63566461]
[1617278481456,1.356e-05,1914.2,1914.0,0.39]
[1617278481668,0.08430678,1914.7,1914.3,5.01]
[1617278481864,0.08430678,1914.7,1914.6,40.2389]
[1617278482086,0.08430678,1914.7,1914.6,41.2792163]
[1617278482891,0.16861356,1914.7,1914.6,40.2389]
[1617278483079,1.16861356,1915.4,1914.7,27.15]
[1617278483282,1.16861356,1915.4,1915.1,0.39]
[1617278483481,1.16861356,1915.4,1914.9,5.42]
[1617278483692,1.16861356,1915.4,1915.0,1.2]
[1617278483898,1.11861356,1915.4,1915.3,10.54580689]
[1617278484282,1.26981554,1915.4,1915.3,16.09580689]
[1617278484709,2.31858367,1915.4,1915.3,19.17580689]
[1617278484904,2.16738367,1915.4,1915.3,20.75580689]
[1617278485104,1.11861554,1915.4,1915.3,20.75580689]
[1617278485305,1.11861554,1915.4,1915.3,33.95580689]
[1617278486304,1.11861554,1915.4,1915.3,20.75580689]
[1617278486507,1.11861554,1915.4,1915.3,20.37580689]
[1617278486805,1.11861554,1915.4,1915.3,24.18580689]
[1617278487012,1.11861554,1915.4,1915.3,25.38580689]
[1617278487337,1.11861554,1915.4,1915.3,19.83580689]
[1617278487528,1.11861554,1915.4,1915.3,13.62580689]
[1617278487935,1.11861554,1915.4,1915.3,3.22580689]
[1617278488131,1.11861554,1915.4,1915.3,0.14580689]
[1617278488132,0.11861554,1915.4,1915.3,0.14580689]
[1617278488328,0.11861554,1915.4,1915.3,6.99580689]
[1617278488829,0.11861554,1915.4,1915.3,14.22860689]
[1617278489132,0.11861554,1915.4,1915.3,13.83860689]
[1617278490250,0.23962033,1915.4,1915.3,13.83860689]
[1617278490855,0.23962033,1915.4,1915.3,15.03860689]
[1617278491152,0.23962033,1915.4,1915.3,13.83860689]
[1617278491351,0.23962033,1915.4,1915.3,29.93860689]
[1617278491951,0.23962033,1915.4,1915.3,17.33860689]
[1617278493002,0.02962033,1915.7,1915.3,17.33860689]
[1617278493303,0.294,1915.8,1915.3,17.33860689]
[1617278493702,2.0,1915.9,1915.4,1.2]
[1617278493906,2.0,1915.9,1915.6,0.38]
[1617278495305,2.0,1915.9,1915.6,1.58]
[1617278495503,2.0,1915.9,1915.6,0.38]
[1617278495705,2.0,1915.9,1915.8,29.14]
[1617278496012,2.0,1915.9,1915.8,41.6454]
[1617278496306,2.0,1916.4,1915.9,10.0]
[1617278496508,2.0,1916.4,1916.0,5.1096181]
[1617278496706,2.0,1916.4,1916.3,25.45]
[1617278496907,2.0,1916.4,1916.3,41.76429]
[1617278497511,2.0,1916.4,1916.3,52.9122797]
[1617278497828,2.0,1916.4,1916.3,50.44429]
[1617278498030,1.0,1916.4,1916.3,50.44429]
[1617278499038,1.0,1916.4,1916.3,61.5922797]
[1617278500777,1.0,1916.4,1916.3,61.75836284]
[1617278501988,2.0,1916.4,1916.3,61.75836284]
[1617278502286,2.0,1917.4,1916.9,7.81959]
[1617278502488,2.0,1917.4,1917.0,0.6826]
[1617278502692,2.0,1917.4,1917.2,0.27193404]
[1617278502983,2.0,1917.4,1917.2,5.26782724]
[1617278503186,1.0,1917.4,1917.3,36.375]
[1617278503385,1.0,1917.4,1917.3,41.795]
[1617278503386,0.0327,1917.4,1917.3,41.795]
[1617278503587,2.0,1918.4,1917.3,52.21877]
[1617278503786,2.0,1918.4,1917.4,12.85769758]
[1617278503990,0.5789568,1917.9,1917.5,1.2]
[1617278504189,9.28e-06,1917.9,1917.8,39.74035502]
[1617278504490,2.0,1918.4,1918.3,17.86]
[1617278504491,1.95,1918.4,1918.3,17.86]
[1617278504788,1.95,1918.4,1918.3,20.67810175]
[1617278505190,1.95,1918.4,1918.3,21.07810175]
[1617278505392,1.95,1918.4,1918.3,24.39810175]
[1617278505830,1.95,1918.4,1918.3,39.96023836]
[1617278506035,1.95,1918.4,1918.3,31.96023836]
[1617278506231,1.95,1918.4,1918.3,33.26595552]
[1617278506435,1.95,1918.4,1918.3,31.96023836]
[1617278506632,1.92236212,1918.4,1918.3,41.56023836]
[1617278506834,1.92236212,1918.4,1918.3,49.56023836]
[1617278507032,1.92236212,1918.4,1918.3,49.41023836]
[1617278507234,1.92236212,1918.4,1918.3,39.96023836]
[1617278507837,1.92236212,1918.4,1918.3,31.96023836]
[1617278508033,0.92236212,1918.4,1918.3,40.76023836]
[1617278508451,0.92236212,1918.4,1918.3,31.96023836]
[1617278508853,0.80510212,1918.4,1918.3,39.16023836]
[1617278509058,0.80510212,1918.4,1918.3,43.91023836]
[1617278509251,0.80510212,1918.4,1918.3,31.96023836]
[1617278510051,0.80510212,1918.4,1918.3,50.01023836]
[1617278510253,0.56550212,1918.4,1918.3,58.01023836]
[1617278510853,0.56550212,1918.4,1918.3,45.51023836]
[1617278511058,2.0,1918.9,1918.4,4.08744962]
[1617278511263,2.0,1918.9,1918.5,5.01]
[1617278511459,2.0,1918.9,1918.7,3.70744962]
[1617278511660,2.0,1919.4,1919.2,0.39]
[1617278511961,2.0,1919.4,1919.3,15.35]
[1617278512161,4.0,1919.4,1919.3,15.35]
[1617278512359,2.0,1919.4,1919.3,14.58270118]
[1617278512559,4.0,1919.4,1919.3,14.58270118]
[1617278513063,3.0,1919.4,1919.3,23.98270118]
[1617278513463,3.0,1919.4,1919.3,23.44530304]
[1617278513899,3.0,1919.4,1919.3,31.44530304]
[1617278514499,3.0,1919.4,1919.3,38.80329274]
[1617278515200,3.0,1919.4,1919.3,11.1779897]
[1617278515401,3.0,1919.4,1919.3,3.82]
[1617278515604,3.0,1919.4,1919.3,8.83]
[1617278515799,3.0,1919.4,1919.3,8.9506333]
[1617278516001,3.0,1919.4,1919.3,3.9406333]
[1617278517116,3.0,1919.4,1919.3,0.1206333]
[1617278517521,3.4,1919.4,1919.3,0.1206333]
[1617278517917,3.0,1919.4,1919.3,0.1206333]
[1617278518218,2.0,1919.5,1919.3,6.3706333]
[1617278518514,2.0,1919.4,1919.3,6.3706333]
[1617278518931,2.0,1919.4,1919.3,29.2706333]
[1617278519133,2.0,1919.4,1919.3,33.37013422]
[1617278519334,2.0,1919.4,1919.3,39.13013422]
[1617278519632,2.0,1919.4,1919.3,47.13013422]
[1617278519849,2.0,1919.9,1919.4,29.15]
[1617278520046,2.0,1919.9,1919.8,18.94]
[1617278520345,2.0,1919.9,1919.8,26.6228]
[1617278520847,2.0,1919.9,1919.8,26.78879047]
[1617278521245,2.0,1919.9,1919.8,35.91879047]
[1617278521485,2.0,1919.9,1919.8,36.30879047]
[1617278522488,2.0,1919.9,1919.8,35.91879047]
[1617278523091,1.0,1919.9,1919.8,35.91879047]
[1617278523493,1.0,1919.9,1919.8,36.30879047]
[1617278524193,0.13,1920.2,1920.1,34.54]
[1617278524389,2.0,1920.4,1920.1,29.53]
[1617278524591,2.0,1920.4,1920.2,14.65662997]
[1617278524789,2.0,1920.4,1920.3,31.10332319]
[1617278524991,0.39,1921.5,1920.5,3.14942576]
[1617278525191,0.39,1921.5,1920.5,3.28942576]
[1617278525391,1.3791149,1921.7,1920.7,3.55840666]
[1617278525392,2.38,1921.4,1920.7,3.55840666]
[1617278525592,2.0,1921.4,1920.8,23.2]
[1617278525891,2.39,1921.4,1920.8,28.32082748]
[1617278526591,0.41,1921.2,1920.8,27.92082748]
[1617278526813,0.41,1921.2,1920.8,28.94957621]
[1617278527011,2.11711289,1920.9,1920.8,28.94957621]
[1617278527412,2.11711289,1920.9,1920.8,28.86157621]
[1617278527612,2.11711289,1920.9,1920.8,4.72082748]
[1617278527813,2.11711289,1920.9,1920.8,12.52494748]
[1617278528012,2.11711289,1920.9,1920.8,7.96494748]
[1617278528215,2.11711289,1920.9,1920.4,10.40623]
[1617278528216,1.49711289,1920.9,1920.4,10.40623]
[1617278528620,0.4,1920.7,1920.1,0.4]
[1617278528919,0.4,1920.7,1920.1,0.14]
[1617278530040,0.4,1920.7,1920.3,11.58014683]
[1617278530842,0.4,1920.7,1920.6,0.18654786]
[1617278531042,0.301,1920.8,1920.6,0.18654786]
[1617278532161,1.51711289,1920.9,1920.6,0.18654786]
[1617278532965,0.11712363,1920.8,1920.6,0.18654786]
[1617278534990,0.11712363,1920.8,1920.7,0.39]
[1617278534991,3.63e-06,1920.8,1920.7,0.39]
[1617278535396,3.63e-06,1920.8,1920.7,5.4]
[1617278535592,3.63e-06,1920.8,1920.7,44.24]
[1617278535994,6.52e-06,1920.9,1920.7,44.24]
[1617278536192,6.52e-06,1920.9,1920.8,71.03850801]
[1617278536396,2.0,1921.4,1921.3,22.76]
[1617278536694,2.0,1921.4,1921.3,72.0716]
[1617278537093,1.0,1921.4,1921.3,79.87397]
[1617278537337,1.0,1921.4,1921.3,87.2319597]
[1617278537742,1.3791149,1921.7,1921.3,87.2319597]
[1617278537943,1.3791149,1921.7,1921.6,29.55]
[1617278538241,1.3791149,1921.7,1921.6,63.99]
[1617278539044,0.5596949,1921.7,1921.6,65.09167187]
[1617278539240,2.0,1921.9,1921.7,29.15]
[1617278539448,2.0,1921.9,1921.8,55.19974]
[1617278539641,2.0,1921.9,1921.8,62.5577297]
[1617278539840,2.0,1921.9,1921.8,77.8577297]
[1617278540041,4.0,1921.9,1921.8,77.8577297]
[1617278540242,2.0,1921.9,1921.8,77.8577297]
[1617278540441,4.0,1921.9,1921.8,77.8577297]
[1617278540742,4.0,1921.9,1921.8,47.4577297]
[1617278540942,4.0,1921.9,1921.8,23.09974]
[1617278541243,4.0,1921.9,1921.8,7.79974]
[1617278542144,3.0,1921.9,1921.8,7.79974]
[1617278543478,3.0,1921.9,1921.7,10.39965]
[1617278543680,3.0,1921.9,1921.3,8.4]
[1617278543681,0.4,1921.6,1921.3,7.08358687]
[1617278543979,2.0,1921.5,1921.3,7.08358687]
[1617278544179,2.0,1921.8,1921.3,7.08358687]
[1617278544385,2.0,1921.4,1921.2,0.14]
[1617278544580,2.0,1921.4,1921.3,0.4]
[1617278544880,2.0,1921.4,1921.3,26.97428]
[1617278545290,2.0,1921.4,1921.3,10.40428]
[1617278545693,2.0,1921.4,1921.3,27.98245091]
[1617278545994,2.0,1921.4,1921.3,77.27904061]
[1617278546590,2.0,1921.4,1921.3,84.27904061]
[1617278546790,2.0,1921.4,1921.3,98.13904061]
[1617278547291,1.0,1921.8,1921.3,98.13904061]
[1617278547490,1.0,1921.4,1921.3,90.78105091]
[1617278547717,1.0,1921.9,1921.4,25.6]
[1617278547919,1.0,1921.9,1921.6,0.4]
[1617278548118,1.0,1921.9,1921.7,0.39]
[1617278548323,1.0,1921.9,1921.7,12.01]
[1617278548519,1.0,1921.9,1921.8,11.21]
[1617278548718,1.0,1921.9,1921.8,14.69]
[1617278548918,1.0,1921.9,1921.8,8.49]
[1617278550541,19.39,1921.9,1921.8,8.49]
[1617278550841,2.59,1921.9,1921.8,0.2061783]
[1617278551642,10.84,1921.9,1921.8,0.2061783]
[1617278552144,1.2,1921.9,1921.8,0.2061783]
[1617278552987,1.59,1921.9,1921.8,0.2061783]
[1617278554589,1.2,1921.9,1921.8,7.8561783]
[1617278555088,1.2,1921.9,1921.8,8.89332556]
[1617278555289,0.4,1922.1,1921.8,8.89332556]
[1617278555290,1.2,1922.0,1921.8,8.89332556]
[1617278555489,0.39,1922.3,1921.8,8.89332556]
[1617278556099,2.0,1922.4,1921.8,21.70591556]
[1617278556294,2.39,1922.4,1922.0,12.11]
[1617278556494,2.39,1922.4,1922.0,7.1]
[1617278556495,1.2,1922.3,1922.0,7.1]
[1617278556993,2.39,1922.4,1922.0,7.1]
[1617278557197,1.0,1922.4,1922.0,7.1]